Cogmind - Beta 15 @@@ ROGUE MODE // 2025.06.09 @ 22:02:59 Player: Cracklepappy Result: Destroyed by RW-QX0(R) with Subdweller Beam Cannon Performance ------------- Evolutions (0) 0 Regions Visited (3) 600 Robots Destroyed (41) 205 Value Destroyed (754) 754 Prototype IDs (2) 40 Alien Tech Used (0) 0 Bonus (21) 21 TOTAL SCORE: 1620 Bonus ------- Follower Combat Kills 21 Cogmind --------- Core Integrity 0/250 Matter 285/300 Energy 110/265 System Corruption 0% Temperature Cool (60) Movement Treading (465) Ox4 Location -10/Subcaves Parts ------- > --- POWER (1) -------- Improved Ion Engine > --- PROPULSION (2) --- Advanced Treads Wheel > --- UTILITY (2) ------ Huge Storage Unit Seismic Detector > --- WEAPON (2) ------- Subdweller Beam Cannon Subdweller Beam Cannon > --- INVENTORY (25) --- Improved Ion Engine Subdweller Power Source Wheel Compact Wheel Improved Heat Sink High-capacity Battery (250) High-capacity Battery (250) High-capacity Battery (250) Large Matter Pod (150) Structural Scanner Subdweller Optics Signal Interpreter Scrap Shield Shield Generator Shield Generator Tractor Beam Light Assault Rifle Light Assault Rifle Subdweller Shrapnel Launcher Datajack Scythe Makeshift Spear Peak State ------------ > --- POWER ------------ Improved Ion Engine > --- PROPULSION ------- Light Treads Advanced Treads > --- UTILITY ---------- Huge Storage Unit Shield Generator > --- WEAPON ----------- Rocket Launcher Scythe > --- INVENTORY -------- Improved Ion Engine Improved Ion Engine Wheel Wheel Compact Wheel Improved Heat Sink High-capacity Battery High-capacity Battery High-capacity Battery Large Matter Pod Structural Scanner Signal Interpreter Seismic Detector Shield Generator Shield Generator Shield Generator Tractor Beam Light Assault Rifle Light Assault Rifle Light Assault Rifle Datajack Makeshift Spear [Rating: 17] Favorites ----------- Power Improved Ion Engine Engine Improved Ion Engine Propulsion Light Treads Treads Light Treads Leg Aluminum Leg Wheel Wheel Utility Huge Storage Unit Device Seismic Detector Storage Huge Storage Unit Protection Light Armor Plating Weapon Assault Rifle Energy Gun EM Pulse Gun Energy Cannon Subdweller Beam Cannon Ballistic Gun Assault Rifle Launcher Rocket Launcher Impact Weapon Hammer Slashing Weapon Scythe Special Melee Weapon Datajack Build | -11 -10 -10 -10 ------- Run | Yrd Mat Min Sub Slots Evolved . | . . . . Power . | . . . . Propulsion . | . . . . Utility . | . . . . Weapon . | . . . . Parts Attached 33 | 7 13 3 10 Power 5 | 1 2 . 2 Engine 5 | 1 2 . 2 Core . | . . . . Reactor . | . . . . Propulsion 7 | 2 2 2 1 Treads 5 | 2 1 1 1 Leg 1 | . . 1 . Wheel 1 | . 1 . . Hover . | . . . . Flight . | . . . . Utility 10 | 2 5 1 2 Device 5 | 1 2 . 2 Storage 3 | 1 2 . . Processor . | . . . . Hackware . | . . . . Protection 2 | . 1 1 . Artifact . | . . . . Weapon 11 | 2 4 . 5 Energy Gun 1 | . 1 . . Energy Cannon 2 | . . . 2 Ballistic Gun 3 | 2 . . 1 Ballistic Cannon . | . . . . Launcher 2 | . 1 . 1 Special Weapon . | . . . . Impact Weapon 1 | . 1 . . Slashing Weapon 1 | . . . 1 Piercing Weapon . | . . . . Special Melee Weapon 1 | . 1 . . Unidentified Prototypes . | . . . . Parts Lost 14 | . 4 1 9 Power 3 | . 1 . 2 Propulsion 4 | . 1 1 2 Utility 3 | . 1 . 2 Weapon 4 | . 1 . 3 Highest Loss Streak 4 | . 2 1 4 To Critical Strikes . | . . . . Average Backups 21 | 5 20 24 23 Power 2 | . 2 3 2 Propulsion 3 | 2 4 3 2 Utility 11 | . 10 13 12 Weapon 3 | . 3 4 4 Tool/Special . | . . . . Unused Backups 27 | 1 7 1 18 Power 4 | . 2 . 2 Propulsion 3 | . 1 . 2 Utility 16 | 1 3 1 11 Weapon 4 | . 1 . 3 Tool/Special . | . . . . Average Slot Usage (%) 98 | . 99 100 92 Engine 13 | . 14 14 8 Treads 26 | . 26 27 25 Wheel 1 | . 1 . 2 Device 6 | . 7 . 13 Storage 14 | . 14 14 14 Protection 7 | . 5 14 . Energy Gun 1 | . 2 . . Ballistic Gun 22 | . 24 27 8 Launcher 1 | . . . 9 Peak Build Rating 17 | 8 12 11 17 Average Rating 10 | 6 9 10 14 On Entrance 7 | . 7 11 11 Naked Turns . | . . . . Heaviest Build 105 | 12 93 95 105 Greatest Support 42 | 40 40 40 42 Greatest Overweight (x) 10 | . 8 2 10 Average Overweight (x) 2 | . 2 2 3 Largest Inventory Capacity 25 | 8 25 25 25 Average Capacity 24 | 7 24 25 25 Most Carried 25 | 8 25 25 25 Average Carried 22 | 5 20 24 23 Final Capacity 25 | 8 25 25 25 Final Carried 25 | 8 25 25 23 Class Distribution -------------------- 100% | Mutant Dominant Class ---------------- Mutant | -10/Materials Mutant | -10/Mines Mutant | -10/Subcaves Resources | -11 -10 -10 -10 ----------- Run | Yrd Mat Min Sub Matter Collected 1331 | 292 639 36 364 Remotely . | . . . . Salvage Created 1217 | 169 790 . 258 Parts 85 | 15 46 . 24 Haulers Intercepted 2 | . 2 . . Recyclers Shooed 4 | . 4 . . Parts Field Recycled . | . . . . Retrieved Matter . | . . . . Parts Self-Destructed 15 | . . . 15 Prevented . | . . . . Kills | -11 -10 -10 -10 ------- Run | Yrd Mat Min Sub Combat Hostiles Destroyed 23 | . 12 . 11 Guns 11 | . 9 . 2 Cannons 3 | . . . 3 AOE 8 | . 3 . 5 Classes Destroyed 11 | 2 7 . 2 Worker 1 | . 1 . . Builder 1 | . 1 . . Tunneler 5 | 4 1 . . Hauler 2 | . 2 . . Recycler 5 | 1 4 . . Operator 1 | . 1 . . Watcher 3 | . 3 . . Swarmer 11 | . 6 . 5 Grunt 6 | . 6 . . Sentry 1 | . . . 1 Subdweller 5 | . . . 5 Best Kill Streak 5 | 3 5 . 5 Combat Bots Only 5 | . 4 . 5 Max Kills in Single Turn 2 | 1 2 . 2 Gunslinging . | . . . . Exploded 2 | . 2 . 2 Melee . | . . . . Uniques/NPCs Destroyed . | . . . . Combat | -11 -10 -10 -10 -------- Run | Yrd Mat Min Sub Hostile Shots Fired 196 | . 95 13 88 Missed 52 | . 24 3 25 Hits 144 | . 71 10 63 Projectile 144 | . 71 10 63 AOE 4 | . . . 4 Critical Strikes 5 | . 2 . 3 Damage Taken 1867 | . 809 71 987 Core 262 | . 72 14 176 Absorbed by Shields 121 | . . . 121 Regen/Repaired (Parts) 113 | . 113 . . Core Remaining (%) 100 | 100 . . . Volleys Fired 111 | 7 74 8 22 Largest 2 | 2 2 2 2 Hottest 160 | 40 60 40 160 Shots Fired 185 | 14 113 16 42 Gun 155 | 14 107 16 18 Cannon 15 | . . . 15 Launcher 15 | . 6 . 9 Special . | . . . . Kinetic 145 | 14 97 16 18 Thermal 15 | . . . 15 Explosive 15 | . 6 . 9 Electromagnetic 10 | . 10 . . Robot Hit Streak 13 | 10 12 5 13 Robot Miss Streak 5 | . 5 4 3 Penetration Max . | . . . . Secondary Targets . | . . . . Shots Hit Robots 115 | 10 71 7 27 Core Hits 62 | 6 42 1 13 Critical Kills 1 | . . . 1 Critical Parts Destroyed . | . . . . Critical Strikes 1 | . . . 1 Meltdown 1 | . . . 1 Melee Attacks 21 | . 3 . 18 Impact 3 | . 3 . . Slashing 18 | . . . 18 Piercing . | . . . . Sneak Attacks . | . . . . Combat Hostiles . | . . . . Follow-up Attacks . | . . . . Damage Inflicted 2295 | 123 1221 108 843 Guns 1128 | 123 827 68 110 Cannons 301 | . . . 301 Explosions 817 | . 385 . 432 Melee . | . . . . Ramming 49 | . 9 40 . Kinetic 1061 | 123 760 68 110 Thermal 301 | . . . 301 Explosive 817 | . 385 . 432 Electromagnetic 67 | . 67 . . Impact . | . . . . Slashing . | . . . . Piercing . | . . . . Highest Corruption . | . . . . Average Corruption . | . . . . Corruption Purged . | . . . . Corruption Blocked . | . . . . Overload Shots . | . . . . Overflow Damage 25 | . 25 . . Projectiles . | . . . . Explosions 25 | . 25 . . Melee . | . . . . Knockbacks . | . . . . Impact . | . . . . Kinetic . | . . . . Secondary . | . . . . Self-Inflicted Damage 275 | . 96 . 179 Shots 9 | . 4 . 5 Rammed 12 | . 3 9 . Targets Rammed 13 | . 4 9 . Kicked . | . . . . Crushed 1 | . 1 . . Highest Temperature 180 | . 50 16 180 Average Temperature 27 | . 18 7 73 Received Heat Transfer 499 | . 261 . 238 Siege Activations . | . . . . Martial Activations . | . . . . Shielding Activations . | . . . . Robots Disrupted . | . . . . Combat Hostiles . | . . . . Robots Corrupted . | . . . . Combat Hostiles . | . . . . Parts Fried . | . . . . Impact Corruptions . | . . . . Robots Melted 1 | . . . 1 Combat Hostiles 1 | . . . 1 Parts Melted 1 | . . . 1 Heat Transferred 407 | . . . 407 Parts Sabotaged . | . . . . Parts Stolen . | . . . . Parts Stripped . | . . . . Power Chain Reactions . | . . . . Alert | -11 -10 -10 -10 ------- Run | Yrd Mat Min Sub Maximum Alert Level . | . . . . Low Security (%) 100 | 100 100 100 . Level 1 . | . . . . Level 2 . | . . . . Level 3 . | . . . . Level 4 . | . . . . Level 5 . | . . . . High Security . | . . . . Max Security . | . . . . Peak Influence 171 | 5 171 81 . Initial 63 | . . 63 . Average 18 | 1 25 6 . Influence Increases 921 | 25 592 88 216 Destroy 0b10 Robot/C 420 | . 240 60 120 Destroy 0b10 Robot/NC 90 | 25 65 . . Destroy Leader 70 | . 60 10 . Allied During Kill 17 | . . 11 6 Trap Triggered on 0b10 10 | . 10 . . Successful Hack 53 | . 46 7 . Select Force Hacks 60 | . 60 . . Disable Machine 45 | . 45 . . Destroy Structure 36 | . 36 . . Lose Combat Pursuer 120 | . 30 . 90 Influence Decreases 921 | 25 428 252 216 Entered New Map 101 | . . 101 . Time Decay 690 | 25 408 151 106 Lost Part 70 | . 20 . 50 Lost Ally 60 | . . . 60 Squads Dispatched 3 | . 2 1 . Investigation 3 | . 2 1 . Extermination . | . . . . Reinforcement . | . . . . Assault . | . . . . Garrison . | . . . . Intercept . | . . . . Searches Triggered . | . . . . Construction Impeded . | . . . . Haulers Reinforced . | . . . . Active Scanning Responses . | . . . . Cargo Convoy Interrupts . | . . . . Stealth | -11 -10 -10 -10 --------- Run | Yrd Mat Min Sub Distress Signals 2 | . 2 . . Communications Jammed . | . . . . Distress Signals . | . . . . Times Spotted 45 | . 28 3 14 Peak Tracking Total 6 | . 6 3 4 Tactical Retreats 4 | . 2 . 2 Traps | -11 -10 -10 -10 ------- Run | Yrd Mat Min Sub Traps Triggered . | . . . . Indirectly . | . . . . Trap Hack Attempts 34 | . 34 . . Triggered . | . . . . Disarmed . | . . . . Reprogrammed 2 | . 2 . . Reused 1 | . 1 . . Traps Extracted . | . . . . Installed . | . . . . Triggered 1 | . 1 . . Machines | -11 -10 -10 -10 ---------- Run | Yrd Mat Min Sub Machines Disabled 6 | . 3 . 3 Max in Single Turn 2 | . 1 . 2 Machines Repaired . | . . . . Machines Dismantled . | . . . . Machines Sabotaged . | . . . . Overloaded Fab Kills . | . . . . Hacking | -11 -10 -10 -10 --------- Run | Yrd Mat Min Sub Machines Accessed 12 | . 10 2 . Terminals 8 | . 7 1 . Fabricators . | . . . . Repair Stations 1 | . 1 . . Recycling Units 2 | . 2 . . Scanalyzers . | . . . . Garrison Access . | . . . . Total Hacks 32 | . 28 4 . Successful 17 | . 15 2 . Failed 15 | . 13 2 . Catastrophic 4 | . 4 . . Database Lockouts . | . . . . Manual 21 | . 18 3 . Terminals 23 | . 20 3 . Fabricators . | . . . . Repair Stations 5 | . 5 . . Recycling Units 3 | . 3 . . Scanalyzers . | . . . . Garrison Access . | . . . . Terminal Hacks 5 | . 3 2 . Part Schematic 1 | . . 1 . Robot Schematic 1 | . 1 . . Robot Analysis 1 | . 1 . . Prototype ID Bank 1 | . 1 . . Open Door 1 | . . 1 . Fabricator Hacks . | . . . . Repair Station Hacks 4 | . 4 . . Scan Component 2 | . 2 . . Repair 2 | . 2 . . Recycling Unit Hacks 1 | . 1 . . Retrieve Components 1 | . 1 . . Scanalyzer . | . . . . Garrison Access Hacks . | . . . . Unauthorized Hacks 7 | . 7 . . Terminals 5 | . 5 . . Skim 5 | . 5 . . Fabricators . | . . . . Repair Stations . | . . . . Recycling Units 2 | . 2 . . Tunnel 2 | . 2 . . Scanalyzers . | . . . . Garrison Access . | . . . . Data Cores Recovered . | . . . . Used . | . . . . Hacking Detections 9 | . 8 1 . Full Trace Events . | . . . . Feedback Events . | . . . . Feedback Blocked . | . . . . Robot Schematics Acquired 1 | . 1 . . Robots Built . | . . . . Authchips . | . . . . Time . | . . . . Total Robot Build Rating . | . . . . Part Schematics Acquired 1 | . . 1 . Parts Built . | . . . . Authchips . | . . . . Time . | . . . . Total Part Build Rating . | . . . . Parts Repaired 2 | . 2 . . Time 52 | . 52 . . Parts Recycled . | . . . . Recycled Matter . | . . . . Retrieved Matter . | . . . . Retrieved Components 9 | . 9 . . Parts Scanalyzed . | . . . . Part Schematics Acquired . | . . . . Parts Damaged . | . . . . Bothacking | -11 -10 -10 -10 ------------ Run | Yrd Mat Min Sub Used RIF Installer . | . . . . Robots Hacked . | . . . . Non-combat . | . . . . Combat . | . . . . Robot Hacks Applied . | . . . . Relay Couplers Released . | . . . . Fabnet Peak Effective % . | . . . . Robots Rewired . | . . . . Allies Hacked . | . . . . Hacks Repelled . | . . . . Allies | -11 -10 -10 -10 -------- Run | Yrd Mat Min Sub Total Allies 3 | . . 3 . Largest Group 3 | . . 3 3 Highest-Rated Group 40 | . . 40 40 Highest-Rated Ally 16 | . . 16 16 Total Orders . | . . . . Ally Attacks 12 | . . 5 7 Total Damage 127 | . . 54 73 Kills 3 | . . 3 . Allies Corrupted . | . . . . Allies Melted . | . . . . Intel | -11 -10 -10 -10 ------- Run | Yrd Mat Min Sub Active Infowar (turns) 2192 | 66 2034 . 92 Seismic 2192 | 66 2034 . 92 Robot Analysis Total 1 | . 1 . . Derelict Logs Recovered 1 | . . 1 . Drone Launches . | . . . . Drone Recoveries . | . . . . Exploration | -11 -10 -10 -10 ------------- Run | Yrd Mat Min Sub Turns Passed 7205 | 176 3815 2041 1173 Spaces Moved 2195 | 91 1131 614 359 Core 7 | 7 . . . Treads 1936 | 84 953 614 285 Legs . | . . . . Wheels 252 | . 178 . 74 Hover . | . . . . Flight . | . . . . Fastest Speed 50 | 50 160 320 200 Average Speed 295 | 151 296 320 283 Slowest Speed 480 | 160 320 320 480 Overloaded Moves . | . . . . Propulsion Burnouts . | . . . . Robots Hopped . | . . . . Potential Cave-ins . | . . . . Cave-ins Triggered . | . . . . Exploration Rate (%) 59 | 7 100 99 32 Regions Visited 3 Branch Regions 2 Pre-discovered Areas 3 | . 2 1 . Known Exits Taken . | . . . . Unknown Exits Taken 3 | 1 1 1 . Scrap Searched 3 | . . 3 . Spaces Dug 23 | . 12 . 11 Terrain Destroyed 95 | . 35 . 60 Melee . | . . . . Projectile 1 | . . . 1 AOE 94 | . 35 . 59 Terrain Rammed . | . . . . Walls Destroyed . | . . . . Machines Disabled . | . . . . Actions | -11 -10 -10 -10 --------- Run | Yrd Mat Min Sub Total 2694 | 114 1471 660 449 Wait 198 | . 162 16 20 Move 2192 | 90 1130 613 359 Hop . | . . . . Pick Up 54 | 9 30 5 10 Fast Attach 9 | 7 2 . . Attach 15 | . 5 1 9 Detach . | . . . . Swap 24 | . 14 3 7 Drop 22 | 1 12 5 4 Fire 111 | 7 74 8 22 Melee 21 | . 3 . 18 Ram . | . . . . Kick . | . . . . Crush 13 | . 4 9 . Escape Stasis . | . . . . Rewire 1 | . 1 . . Trap 34 | . 34 . . Miscellaneous . | . . . . Route ------- -11/Scrapyard -10/Materials (discovered 5 exits: *Mat x3 / *Min / [*Sub]) -10/Mines (discovered 3 exits: *Mat x2 / [*Sub]) -10/Subcaves (discovered 1 exit: [*Rec]) History --------- Turn | Location | Event 6 | -11/Scrapyard | Discovered new exit (range 15) 177 | -11/Scrapyard | Entered Materials 312 | -10/Materials | Build established: Mutant 802 | -10/Materials | Discovered new exit (range 13) 1373 | -10/Materials | Repaired Lgt. Treads 1401 | -10/Materials | Repaired Seismic Detector 1850 | -10/Materials | Discovered new exit (range 6) 1895 | -10/Materials | Discovered new exit (range 13) 1928 | -10/Materials | Learned location of 1 exit from Recycling 1974 | -10/Materials | Learned 2 Storage zone layouts 2010 | -10/Materials | Identified exit to Materials 2010 | -10/Materials | Learned location of 1 exit from Materials 2052 | -10/Materials | Learned Storage emergency access door positions 2093 | -10/Materials | Learned Storage stockpile data 3992 | -10/Materials | Entered Mines 3999 | -10/Mines | Received a Rocket Launcher from a helpful Derelict 4223 | -10/Mines | Discovered new exit (range 6) 4374 | -10/Mines | Learned location of Zion (-6) 4438 | -10/Mines | Assisted by bots powering up and referring to "LRC-V3" 5383 | -10/Mines | Met a Derelict shopkeep closing up shop 6033 | -10/Mines | Entered Subcaves 6033 | -10/Subcaves | Accompanied by 3 allies 6033 | -10/Subcaves | Discovered new exit (range 10) 6034 | -10/Subcaves | Approached by a straggling Scientist 6056 | -10/Subcaves | Core integrity fell below 50% 6085 | -10/Subcaves | Lost 4 allies 6104 | -10/Subcaves | Lost 4 parts (1p1u2w) 6566 | -10/Subcaves | Shifting Twisted Machinery released Sub. Power Source 6569 | -10/Subcaves | Shifting Twisted Machinery released Sub. Beam Cannon 6771 | -10/Subcaves | Shifting Twisted Machinery released Scrap Shield 6771 | -10/Subcaves | Shifting Twisted Machinery released Sub. Beam Cannon 7001 | -10/Subcaves | Ambushed by Subdwellers from Twisted Machinery 7001 | -10/Subcaves | Ambushed by Subdweller buried in earth 7001 | -10/Subcaves | Ambushed by Subdweller buried in earth 7002 | -10/Subcaves | Core integrity fell below 20% 7009 | -10/Subcaves | Ambushed by Subdweller buried in earth 7044 | -10/Subcaves | Lost 3 parts (1n1u1w) 7206 | -10/Subcaves | Destroyed by RW-QX0(R) with Subdweller Beam Cannon Last Messages --------------- 07015_ Z3-89Z(R) destroyed. 07017_ The unstable cave ceiling collapses. 07017_ 24 Matter crushed. 07018_ The unstable cave ceiling collapses. 07018_ Sub. Optics crushed. 07018_ G6-LCR(R) destroyed. 07024_ 5P-4W9(R) destroyed. 07026_ The unstable cave ceiling collapses. 07027_ Acquired Hcp. Battery. 07028_ The unstable cave ceiling collapses. 07042_ Subatomizers dissect the Disposable Heat Sink. 07045_ Acquired 33 matter. 07050_ The unstable cave ceiling collapses. 07052_ Subatomizers dissect the Disposable Heat Sink. 07052_ Acquired Sub. Shrapnel Launcher. 07053_ Acquired 45 matter. 07057_ Acquired Sub. Optics. 07063_ The unstable cave ceiling collapses. 07064_ Subatomizers dissect the Disposable Heat Sink. 07194_ Imp. Ion Engine destroyed. Map ----- +----------------------------------------------------+ | ?????????????????????????????????????????????????? | | ?????????????????????????????????????????????????? | | ?????????????????????????????????????????????????? | | ?????????????????????????????????????????????????? | | ?????????????????????????????????????????????????? | | ?????????????????????????????????????????????????? | | ?????????????????????????????????????????????????? | | ?????????????????????????????????????????????????? | | ?????????????????????????????????????????????????? | | ?????????????????????????????????????????????????? | | ?????????????????????????????????????????????????? | | ?????????????????????????????????????????????????? | | ?????????????????????????????????????????????????? | | ?????????????????????????????????????????????????? | | ?????????????????????????????????????????????????? | | ?????????????????????????????????????????????????# | | ????????????????????????????????????????????????## | | ???????????????????????????????????????????????## | | ???????????????????????????????????????????????# | | ???????????????????????????????????????????????# | | ?????????????????????????????????????????????### | | ????????????????????????????????????????????## | | ????????????????????????????????????????##### | | ??????????????????????#####???????????### | | ??????????????????# ## ####???###??# | | ??????????????????# R@ ##?## ##?# | | ??????????????????## ## ### ### | | ???????????????????## ?## # | | ????????????????????# ???#"" | | ????????????????????# "" # ## ## | | ???????????????????? ""# # ## ## ##### | | ??????????????????? "######### ## #??# | | ?????????????????? "#????????# ## #?# | | ????????????????? ""##????????# ## | | ????????????????#### " ????????? | | ???????????????????#??"????????? | | ??????????????????????????????? ### ### | | ?????????????????????????????? #### ##?# ##?? | | ????????????????????????????? ####???###??# ###??? | | ???????????????????????????????????????????##????? | | ??????????????????????????????????????????????#### | | ??????????????????????????????????????????????# | | ??????????????????????????????????????????????## | | ???????????????????????????????????????????????### | | ?????????????????????????????????????????????????? | | ????????????????????????????????????????????????## | | ??????????????????????????????????????????????### | | ??????????????????????????????????????????????# | | ??????????????????????????????????????????????## | | ???????????????????????????????????????????????## | +----------------------------------------------------+ Best States ------------- Heat Dissipation 25 Energy Generation 12 Energy Capacity 265 Matter Stores 300 Matter Capacity 300 Sight Range 16 Terrain Scan Density 10 Armor Coverage 150 Evasion (%) 40 Recoil Reduction 2 Item Schematics ----------------- Lgt. Treads | -10/Mines | Hacked Robot Schematics ------------------ M-13 Machinist | -10/Materials | Hacked Fabricated ------------ Nothing Repaired ---------- Lgt. Treads | 30% | -10/Materials Seismic Detector | 25% | -10/Materials Alien Tech Used ----------------- None Achievements -------------- None Challenges ------------ None Game ------ Seed ThrowingSapperSystem Manual? 0 Play Time 00:26:42 Cumulative 890.4 hours Start 2025.06.09 @ 21:37:17 End 2025.06.09 @ 22:02:59 Sessions 1 Manual Loads 0 Difficulty Rogue Special Mode None Game No. 481 Rogue 481 Adventurer 0 Explorer 0 Win Type - Total 22 Types 10/3/3/0/1/1/2/2/0/0 Lore% 82 Gallery% 85 Achievement% 83 Wizard Run 0 Options --------- Layout 0 ASCII 0 Keyboard 0 Movement Numpad Keybinds 0 Fullscreen 2 Font 24/Smallcaps Map View 76x50 Zoom Use 0% Tactical HUD 1 Map Filters NONE Filters NONE Steam 1 RUN: 1dda94dc-a300-4806-8c5b-ec9578c727f5